Cogmind - Beta 14 @@@ ROGUE MODE // 2024.10.17 @ 18:23:25 Player: buwwet Result: Self-destructed Performance ------------- Evolutions (1) 500 Regions Visited (3) 600 Robots Destroyed (33) 165 Value Destroyed (800) 800 Prototype IDs (0) 0 Alien Tech Used (0) 0 Bonus (0) 0 TOTAL SCORE: 2065 Bonus ------- None Cogmind --------- Core Integrity 167/400 Matter 267/300 Energy 265/265 System Corruption 0% Temperature Warm (118) Movement Treading (160) Location -9/Materials Parts ------- > --- POWER (1) -------- Improved Ion Engine > --- PROPULSION (3) --- Light Treads Light Treads Improved Aluminum Leg > --- UTILITY (3) ------ Medium Storage Unit Structural Scanner > --- WEAPON (2) ------- Particle Gun Rocket Launcher > --- INVENTORY (10) --- Light Nuclear Core Light Treads Light Treads Large Storage Unit Sensor Array Improved Signal Interpreter Improved Targeting Computer Hacking Suite Peak State ------------ > --- POWER ------------ Improved Ion Engine > --- PROPULSION ------- Light Treads Light Treads Improved Aluminum Leg > --- UTILITY ---------- Medium Storage Unit Structural Scanner Light Armor Plating > --- WEAPON ----------- Beam Rifle Particle Gun > --- INVENTORY -------- Light Nuclear Core Light Treads Light Treads Large Storage Unit Sensor Array Improved Signal Interpreter Improved Targeting Computer Hacking Suite Rocket Launcher [Rating: 14] Favorites ----------- Power Ion Engine Engine Ion Engine Propulsion Light Treads Treads Light Treads Leg Improved Aluminum Leg Utility Medium Storage Unit Device Structural Scanner Storage Medium Storage Unit Protection Light Armor Plating Weapon Assault Rifle Energy Gun Particle Gun Ballistic Gun Assault Rifle Ballistic Cannon Light Cannon Launcher Rocket Launcher Build | -11 -10 -10 -9 ------- Run | Yrd Mat Min Mat Slots Evolved 2 | . . . 2 Power . | . . . . Propulsion 1 | . . . 1 Utility 1 | . . . 1 Weapon . | . . . . Parts Attached 37 | 7 11 . 19 Power 3 | 1 . . 2 Engine 3 | 1 . . 2 Core . | . . . . Reactor . | . . . . Propulsion 15 | 3 3 . 9 Treads 9 | 2 2 . 5 Leg 6 | 1 1 . 4 Wheel . | . . . . Hover . | . . . . Flight . | . . . . Utility 9 | 1 4 . 4 Device 2 | . 1 . 1 Storage 4 | 1 3 . . Processor . | . . . . Hackware . | . . . . Protection 3 | . . . 3 Artifact . | . . . . Weapon 10 | 2 4 . 4 Energy Gun 3 | . 1 . 2 Energy Cannon . | . . . . Ballistic Gun 5 | 2 3 . . Ballistic Cannon 1 | . . . 1 Launcher 1 | . . . 1 Special Weapon . | . . . . Impact Weapon . | . . . . Slashing Weapon . | . . . . Piercing Weapon . | . . . . Special Melee Weapon . | . . . . Unidentified Prototypes . | . . . . Parts Lost 7 | . 1 1 5 Power . | . . . . Propulsion 2 | . 1 1 . Utility 2 | . . . 2 Weapon 3 | . . . 3 Highest Loss Streak 2 | . 1 1 2 To Critical Strikes . | . . . . Average Slot Usage (%) 94 | . 94 82 95 Engine 9 | . 13 . 9 Treads 19 | . 17 14 22 Leg 9 | . 10 11 9 Device 11 | . 10 14 11 Storage 12 | . 14 14 11 Protection 5 | . . . 9 Energy Gun 8 | . 13 . 6 Ballistic Gun 10 | . 14 28 5 Ballistic Cannon 5 | . . . 8 Peak Build Rating 14 | 6 9 7 14 Average Rating 9 | 4 7 6 11 On Entrance 4 | . 6 7 6 Naked Turns . | . . . . Heaviest Build 31 | 14 31 15 27 Greatest Support 60 | 40 40 20 60 Greatest Overweight (x) 1 | . 1 . . Average Overweight (x) . | . . . . Largest Inventory Capacity 15 | 8 15 10 10 Average Capacity 9 | 6 10 10 10 Most Carried 10 | 4 10 10 10 Average Carried 8 | 2 6 10 9 Final Capacity 10 | 8 10 10 10 Final Carried 10 | 3 10 10 8 Class Distribution -------------------- 85% | Mutant 14% | Scavenger-Mutant Dominant Class ---------------- Mutant | -10/Materials Mutant | -10/Mines Mutant | -9/Materials Resources | -11 -10 -10 -9 ----------- Run | Yrd Mat Min Mat Matter Collected 887 | 223 108 . 556 Remotely . | . . . . Salvage Created 976 | . 261 . 715 Parts 70 | . 17 . 53 Haulers Intercepted 2 | . . . 2 Recyclers Shooed 3 | . . 1 2 Parts Field Recycled . | . . . . Retrieved Matter . | . . . . Parts Self-Destructed . | . . . . Prevented . | . . . . Kills | -11 -10 -10 -9 ------- Run | Yrd Mat Min Mat Combat Hostiles Destroyed 22 | . 6 . 16 Guns 12 | . 6 . 6 Cannons 6 | . . . 6 AOE 4 | . . . 4 Classes Destroyed 9 | . 2 . 7 Builder 1 | . . . 1 Hauler 2 | . . . 2 Recycler 2 | . . . 2 Operator 2 | . 1 . 1 Watcher 4 | . . . 4 Swarmer 7 | . . . 7 Grunt 10 | . 6 . 4 Duelist 1 | . . . 1 Sentry 4 | . . . 4 Best Kill Streak 5 | . 3 . 5 Combat Bots Only 3 | . 3 . 3 Max Kills in Single Turn 2 | . 1 . 2 Gunslinging . | . . . . Exploded 2 | . . . 2 Melee . | . . . . Uniques/NPCs Destroyed . | . . . . Combat | -11 -10 -10 -9 -------- Run | Yrd Mat Min Mat Hostile Shots Fired 191 | . 49 13 129 Missed 50 | . 12 5 33 Damage Taken 1806 | . 493 168 1145 Core 306 | . 61 12 233 Absorbed by Shields . | . . . . Redirected to Shielding 18 | . . . 18 Core Remaining (%) 85 | 100 . 70 . Volleys Fired 102 | . 27 2 73 Largest 2 | . 2 2 2 Hottest 121 | . 85 40 121 Shots Fired 173 | . 40 4 129 Gun 121 | . 40 4 77 Cannon 47 | . . . 47 Launcher 5 | . . . 5 Special . | . . . . Kinetic 108 | . 27 4 77 Thermal 60 | . 13 . 47 Explosive 5 | . . . 5 Electromagnetic . | . . . . Robot Hit Streak 20 | . 20 4 18 Robot Miss Streak 6 | . 2 2 6 Penetration Max . | . . . . Secondary Targets . | . . . . Shots Hit Robots 120 | . 35 2 83 Core Hits 53 | . 16 1 36 Critical Kills . | . . . . Critical Parts Destroyed . | . . . . Critical Strikes 4 | . . . 4 Burn 3 | . . . 3 Blast 1 | . . . 1 Melee Attacks . | . . . . Impact . | . . . . Slashing . | . . . . Piercing . | . . . . Sneak Attacks . | . . . . Combat Hostiles . | . . . . Follow-up Attacks . | . . . . Damage Inflicted 2155 | . 413 24 1718 Guns 1108 | . 413 24 671 Cannons 557 | . . . 557 Explosions 490 | . . . 490 Melee . | . . . . Ramming . | . . . . Kinetic 1029 | . 224 24 781 Thermal 636 | . 189 . 447 Explosive 419 | . . . 419 Electromagnetic 71 | . . . 71 Impact . | . . . . Slashing . | . . . . Piercing . | . . . . Highest Corruption . | . . . . Average Corruption . | . . . . Corruption Purged . | . . . . Corruption Blocked . | . . . . Overload Shots . | . . . . Overflow Damage 33 | . . . 33 Projectiles . | . . . . Explosions 33 | . . . 33 Melee . | . . . . Knockbacks 5 | . . . 5 Impact . | . . . . Kinetic 5 | . . . 5 Secondary . | . . . . Self-Inflicted Damage 57 | . . . 57 Shots 3 | . . . 3 Rammed 1 | . . 1 . Targets Rammed 1 | . . 1 . Kicked . | . . . . Crushed . | . . . . Highest Temperature 316 | . 316 . 308 Average Temperature 88 | . 124 . 77 Received Heat Transfer 569 | . 285 80 204 Effects 1 | . . . 1 Interference 1 | . . . 1 Siege Activations . | . . . . Robots Corrupted . | . . . . Combat Hostiles . | . . . . Parts Fried . | . . . . Impact Corruptions . | . . . . Robots Melted . | . . . . Combat Hostiles . | . . . . Parts Melted 1 | . 1 . . Heat Transferred 1776 | . 444 . 1332 Parts Sabotaged . | . . . . Parts Stolen . | . . . . Parts Stripped . | . . . . Power Chain Reactions 1 | . . . 1 Alert | -11 -10 -10 -9 ------- Run | Yrd Mat Min Mat Peak Influence 281 | . 118 28 281 Initial 28 | . . 28 6 Average 58 | . 33 26 81 Maximum Alert Level 1 | . . . 1 Low Security (%) 95 | 100 100 100 92 Level 1 4 | . . . 7 Level 2 . | . . . . Level 3 . | . . . . Level 4 . | . . . . Level 5 . | . . . . High Security . | . . . . Max Security . | . . . . Squads Dispatched 3 | . 1 . 2 Investigation . | . . . . Extermination . | . . . . Reinforcement 3 | . 1 . 2 Assault . | . . . . Garrison . | . . . . Intercept . | . . . . Searches Triggered . | . . . . Construction Impeded 1 | . . . 1 Haulers Reinforced . | . . . . Active Scanning Responses . | . . . . Cargo Convoy Interrupts . | . . . . Stealth | -11 -10 -10 -9 --------- Run | Yrd Mat Min Mat Distress Signals 5 | . 2 . 3 Communications Jammed . | . . . . Distress Signals . | . . . . Times Spotted 48 | . 12 6 30 Peak Tracking Total 5 | . 5 5 4 Tactical Retreats 4 | . 1 1 2 Traps | -11 -10 -10 -9 ------- Run | Yrd Mat Min Mat Traps Triggered 1 | . . . 1 Indirectly . | . . . . Trap Hack Attempts . | . . . . Triggered . | . . . . Disarmed . | . . . . Reprogrammed . | . . . . Reused . | . . . . Traps Extracted . | . . . . Installed . | . . . . Triggered . | . . . . Machines | -11 -10 -10 -9 ---------- Run | Yrd Mat Min Mat Machines Disabled 2 | . . . 2 Max in Single Turn 2 | . . . 2 Machines Repaired . | . . . . Machines Dismantled . | . . . . Machines Sabotaged . | . . . . Overloaded Fab Kills . | . . . . Hacking | -11 -10 -10 -9 --------- Run | Yrd Mat Min Mat Machines Accessed 10 | . 7 . 3 Terminals 8 | . 6 . 2 Fabricators . | . . . . Repair Stations . | . . . . Recycling Units 2 | . 1 . 1 Scanalyzers . | . . . . Garrison Access . | . . . . Total Hacks 28 | . 21 . 7 Successful 13 | . 11 . 2 Failed 15 | . 10 . 5 Catastrophic 1 | . 1 . . Database Lockouts . | . . . . Manual 19 | . 17 . 2 Terminals 22 | . 18 . 4 Fabricators . | . . . . Repair Stations . | . . . . Recycling Units 6 | . 3 . 3 Scanalyzers . | . . . . Garrison Access . | . . . . Terminal Hacks 7 | . 7 . . Part Schematic 1 | . 1 . . Branch Access Points 1 | . 1 . . Terminal Index 1 | . 1 . . Unreport Threat 2 | . 2 . . Hauler Manifests 2 | . 2 . . Fabricator Hacks . | . . . . Repair Station Hacks . | . . . . Recycling Unit Hacks 4 | . 2 . 2 Process 1 | . . . 1 Report Inventory 2 | . 1 . 1 Retrieve Components 1 | . 1 . . Scanalyzer . | . . . . Garrison Access Hacks . | . . . . Unauthorized Hacks 2 | . 2 . . Terminals 2 | . 2 . . Botnet 2 | . 2 . . Fabricators . | . . . . Repair Stations . | . . . . Recycling Units . | . . . . Scanalyzers . | . . . . Garrison Access . | . . . . Data Cores Recovered 1 | . 1 . . Used . | . . . . Hacking Detections 9 | . 6 . 3 Full Trace Events . | . . . . Feedback Events . | . . . . Feedback Blocked . | . . . . Robot Schematics Acquired . | . . . . Robots Built . | . . . . Authchips . | . . . . Time . | . . . . Total Robot Build Rating . | . . . . Part Schematics Acquired 1 | . 1 . . Parts Built . | . . . . Authchips . | . . . . Time . | . . . . Total Part Build Rating . | . . . . Parts Repaired . | . . . . Time . | . . . . Parts Recycled . | . . . . Recycled Matter 150 | . . . 150 Retrieved Matter . | . . . . Retrieved Components 10 | . 10 . . Parts Scanalyzed . | . . . . Part Schematics Acquired . | . . . . Parts Damaged . | . . . . Bothacking | -11 -10 -10 -9 ------------ Run | Yrd Mat Min Mat Used RIF Installer . | . . . . Robots Hacked . | . . . . Non-combat . | . . . . Combat . | . . . . Robot Hacks Applied . | . . . . Relay Couplers Released . | . . . . Fabnet Peak Effective % . | . . . . Robots Rewired . | . . . . Allies Hacked . | . . . . Hacks Repelled . | . . . . Allies | -11 -10 -10 -9 -------- Run | Yrd Mat Min Mat Total Allies . | . . . . Largest Group . | . . . . Highest-Rated Group . | . . . . Highest-Rated Ally . | . . . . Total Orders . | . . . . Ally Attacks . | . . . . Total Damage . | . . . . Kills . | . . . . Allies Corrupted . | . . . . Allies Melted . | . . . . Intel | -11 -10 -10 -9 ------- Run | Yrd Mat Min Mat Robot Analysis Total . | . . . . Derelict Logs Recovered . | . . . . Drone Launches . | . . . . Drone Recoveries . | . . . . Exploration | -11 -10 -10 -9 ------------- Run | Yrd Mat Min Mat Turns Passed 2074 | 91 643 178 1162 Spaces Moved 960 | 53 312 106 489 Core 6 | 6 . . . Treads 954 | 47 312 106 489 Legs . | . . . . Wheels . | . . . . Hover . | . . . . Flight . | . . . . Fastest Speed 50 | 50 160 160 160 Average Speed 160 | 147 164 160 160 Slowest Speed 240 | 160 240 160 160 Overloaded Moves . | . . . . Propulsion Burnouts . | . . . . Robots Hopped . | . . . . Cave-ins Triggered . | . . . . Exploration Rate (%) 30 | 4 56 24 37 Regions Visited 3 Branch Regions 1 Pre-discovered Areas . | . . . . Known Exits Taken 1 | . 1 . . Unknown Exits Taken 2 | 1 . 1 . Scrap Searched . | . . . . Spaces Dug . | . . . . Terrain Destroyed 22 | . . . 22 Melee . | . . . . Projectile . | . . . . AOE 22 | . . . 22 Terrain Rammed . | . . . . Walls Destroyed . | . . . . Machines Disabled . | . . . . Actions | -11 -10 -10 -9 --------- Run | Yrd Mat Min Mat Total 1317 | 63 402 110 742 Wait 184 | . 43 . 141 Move 957 | 52 311 105 489 Hop . | . . . . Pick Up 21 | 4 7 1 9 Fast Attach 9 | 5 1 . 3 Attach 8 | 1 1 . 6 Detach . | . . . . Swap 20 | 1 9 . 10 Drop 15 | . 3 1 11 Fire 102 | . 27 2 73 Melee . | . . . . Ram . | . . . . Kick . | . . . . Crush 1 | . . 1 . Escape Stasis . | . . . . Rewire . | . . . . Trap . | . . . . Miscellaneous . | . . . . Route ------- -11/Scrapyard -10/Materials (discovered 2 exits: *Mat / *Min) -10/Mines -9/Materials History --------- Turn | Location | Event 11 | -11/Scrapyard | Discovered new exit (range 16) 92 | -11/Scrapyard | Entered Materials 289 | -10/Materials | Identified exit to Mines 300 | -10/Materials | Build established: Mutant 552 | -10/Materials | Discovered new exit (range 5) 735 | -10/Materials | Entered Mines 761 | -10/Mines | Discovered new exit (range 12) 768 | -10/Mines | Received a Rocket Launcher from a helpful Derelict 815 | -10/Mines | Assembled infested the area 913 | -10/Mines | Entered Materials 913 | -9/Materials | Evolved 2 slots: Propulsion x1, Utility x1 2040 | -9/Materials | Core integrity fell below 50% 2075 | -9/Materials | Self-destructed Last Messages --------------- 01993_ K-01 Serf collects debris. 01993_ U-05 Engineer builds a Wall. 01994_ U-05 Engineer builds a Door. 01995_ Acquired 84 matter. 01995_ U-05 Engineer builds a Wall. 01996_ R-06 Scavenger collects Corrupted Lgt. Assault Rifle. 01997_ Acquired 13 matter. 01998_ K-01 Serf collects debris. 01998_ U-05 Engineer lays Concrete. 01999_ U-05 Engineer builds a Wall. 02000_ R-06 Scavenger collects Lgt. Ion Engine. 02000_ U-05 Engineer lays Concrete. 02002_ K-01 Serf collects debris. 02017_ U-05 Engineer lays Concrete. 02044_ The unstable cave ceiling collapses. 02044_ G-34 Mercenary destroyed. 02047_ K-01 Serf collects debris. 02050_ K-01 Serf destroyed. 02050_ K-01 Serf collects debris. Map ----- +----------------------------------------------------+ | ?????????????????????????????????####### # # # | | ?????????????????????????????????## ! # | | ?????????????????????????????????## # | | ?????????????????????????????????## # | | ?????????????????????????????????## / % | | ?????????????????????????????????## [ #% | | ????????????????????????????? ##?## =# | | ????????????????????????????? ##?## % # # | | ?????????????????????? ??? ##?## ^ ## # | | ??????????????????????##+#?## ##?#######/##### # | | ??????????????????????## #?## ##?####### ##### # | | ?????????????????????### #### # ?????### ##### # | | ????????????????????? ## #### # ?????### # | | ????????????????????? # # ?????## | | ????????????????????? + + ?????## | | ????????????????????? # # ?????## | | ????????????????????? # # """ ## | | ????????????????????? + ######### #### | | ????????????????????????## #### | | ???????????????????????### ##?? | | ???????????????????????### * ##?? | | ???????????????????????## % %= ##?? | | ???????????????????????## = [ ##?? | | ???????????????????????##g### # # ## ##?? | | ???????????????????????## # ##### ##?? | | ???????????????????????##@# ##### ##?? | | ???????????????????????## # ##?## ##?? | | ???????????????????????## # """" + ? ##?? | | ???????????????????????## # """" ##?## | | ???????????????????????## # """" ##?## ####+## | | ???????????????????????## #########?####+### | | ???????????????????????## #########?### ## ????! | | ???????????????????????## ##?????????????????????? | | ???????????????????????## ?????????????????????? | | ????????????????????????###??????????????????????? | | ????????????????????????###??????????????????????? | | ?????????????????????????????????????????????????? | | ?????????????????????????????????????????????????? | | ?????????????????????????????????????????????????? | | | | | | | | | | | | | | | | | | | | | | | +----------------------------------------------------+ Best States ------------- Heat Dissipation 38 Energy Generation 12 Energy Capacity 265 Matter Stores 300 Matter Capacity 300 Sight Range 16 Terrain Scan Density 10 Armor Coverage 150 Weapon Shielding 33 Evasion (%) 40 Recoil Reduction 3 Item Schematics ----------------- Lgt. Treads | -10/Materials | Hacked Robot Schematics ------------------ None Fabricated ------------ Nothing Alien Tech Used ----------------- None Achievements -------------- Novice Programmer Challenges ------------ None Game ------ Seed DisruptorColdNanoactuators Manual? 0 Play Time 00:23:33 Cumulative 29.1 hours Start 2024.08.09 @ 13:39:24 End 2024.10.17 @ 18:23:25 Sessions 7 Manual Loads 0 Difficulty Rogue Special Mode None Game No. 28 Rogue 28 Adventurer 0 Explorer 0 Win Type - Total 0 Types 0/0/0/0/0/0/0/0/0 Lore% 21 Gallery% 27 Achievement% 28 Wizard Run 0 Options --------- Layout 1 ASCII 0 Keyboard 0 Movement Arrows Keybinds 0 Fullscreen 2 Font 24/Terminus Map View 50x35 Zoom Use 0% Tactical HUD 1 Map Filters NONE Filters NONE Steam 1 RUN: 46502b47-13fb-4c56-bf05-2488d0462c58